[Event "XXXIX Benasque Open 2019"]
[Site "Benasque"]
[Date "2019.07.10"]
[Round "7.10"]
[White "Padmini, Rout"]
[Black "Cruz, Cristhian"]
[Result "1/2-1/2"]
[ECO "B81"]
[WhiteElo "2385"]
[BlackElo "2562"]
[Annotator "ChessBase"]
[PlyCount "192"]
[EventDate "2019.07.04"]
[EventType "swiss"]
[EventCountry "ESP"]
[SourceTitle "playchess.com"]
[Source "ChessBase"]
[SourceQuality "1"]
[TimeControl "5400+30"]

1. e4 c5 {[%emt 0:00:00]} 2. Nf3 {[%emt 0:00:00]} e6 {[%emt 0:00:08]} 3. d4 {[%emt 0:00:08]} cxd4 {[%emt 0:00:09]} 4. Nxd4 {[%emt 0:00:05]} Nf6 {[%emt 0:00:52]} 5. Nc3 {[%emt 0:00:12]} d6 {[%emt 0:00:06]} 6. g4 {[%emt 0:01:34]} h6 {[%emt 0:02:17]} 7. h4 {[%emt 0:00:31]} Nc6 {[%emt 0:02:30]} 8. g5 {[%emt 0:01:53]} hxg5 {[%emt 0:01:04]} 9. Bxg5 {[%emt 0:00:08]} a6 {[%emt 0:01:00]} 10. Qd2 {[%emt 0:02:20]} Qb6 {[%emt 0:00:37]} 11. O-O-O {[%emt 0:04:28]} Qxd4 {[%emt 0:03:45]} 12. Qxd4 {[%emt 0:00:11]} Nxd4 {[%emt 0:00:05]} 13. Rxd4 {[%emt 0:00:06]} Bd7 {[%emt 0:01:14]} 14. Bg2 {[%emt 0:06:17]} Be7 {[%emt 0:04:51]} 15. Re1 {[%emt 0:06:31]} Ng4 {[%emt 0:16:07]} 16. f3 {[%emt 0:02:42]} Ne5 {[%emt 0:01:23]} 17. Bxe7 {[%emt 0:03:19]} Kxe7 {[%emt 0:01:05]} 18. Red1 {[%emt 0:00:15]} Rxh4 {[%emt 0:03:19]} 19. Rxd6 {[%emt 0:00:11]} g5 {[%emt 0:02:49]} 20. R6d2 {[%emt 0:04:16]} Rh2 {[%emt 0:04:52]} 21. Rg1 {[%emt 0:08:08]} Rah8 {[%emt 0:04:25]} 22. b3 {[%emt 0:03:05]} Be8 {[%emt 0:02:01]} 23. Rf2 {[%emt 0:02:48]} f6 {[%emt 0:03:55]} 24. Kd2 {[%emt 0:02:56]} Bh5 {[%emt 0:06:08]} 25. Ke3 {[%emt 0:00:13]} Rd8 {[%emt 0:10:21]} 26. Nb1 {[%emt 0:05:57]} f5 {[%emt 0:02:46]} 27. exf5 {[%emt 0:01:34]} exf5 {[%emt 0:00:23]} 28. Rd2 {[%emt 0:00:56]} f4+ {[%emt 0:08:07]} 29. Ke4 {[%emt 0:00:15]} Rxd2 {[%emt 0:00:26]} 30. Nxd2 {[%emt 0:00:09]} Kf6 {[%emt 0:00:09]} 31. c4 {[%emt 0:02:53]} Bg6+ {[%emt 0:00:44]} 32. Kd5 {[%emt 0:01:55]} Rh7 {[%emt 0:00:12]} 33. Ne4+ {[%emt 0:01:15]} Bxe4+ {[%emt 0:00:24]} 34. Kxe4 {[%emt 0:00:03]} Rh2 {[%emt 0:06:37]} 35. c5 {[%emt 0:10:04]} Ng6 {[%emt 0:00:48]} 36. Bf1 {[%emt 0:07:00]} Rxa2 {[%emt 0:01:17]} 37. Bd3 {[%emt 0:03:50]} Rd2 {[%emt 0:07:18]} 38. Rh1 {[%emt 0:02:23]} Ne5 {[%emt 0:00:25]} 39. Bb1 {[%emt 0:03:58]} Nd7 {[%emt 0:02:15]} 40. Rh6+ {[%emt 0:06:03]} Kg7 {[%emt 0:00:28]} 41. Rh1 {[%emt 0:00:03]} Nf6+ {[%emt 0:01:26]} 42. Kf5 {[%emt 0:00:17]} Rd5+ {[%emt 0:00:10]} 43. Ke6 {[%emt 0:00:03]} Rxc5 {[%emt 0:00:07]} 44. Bf5 {[%emt 0:00:24]} Rc6+ {[%emt 0:01:17]} 45. Ke5 {[%emt 0:00:13]} Kf7 {[%emt 0:00:26]} 46. b4 {[%emt 0:01:02]} a5 {[%emt 0:01:23]} 47. Bb1 {[%emt 0:01:03]} axb4 {[%emt 0:00:32]} 48. Ba2+ {[%emt 0:00:04]} Kg7 {[%emt 0:00:13]} 49. Rb1 {[%emt 0:02:07]} Rc5+ {[%emt 0:00:35]} 50. Kd6 {[%emt 0:01:06]} Rc2 {[%emt 0:00:49]} 51. Be6 {[%emt 0:00:21]} Rc3 {[%emt 0:00:18]} 52. Rxb4 {[%emt 0:00:22]} Rxf3 {[%emt 0:00:05]} 53. Ke5 {[%emt 0:00:48]} Re3+ {[%emt 0:01:01]} 54. Kf5 {[%emt 0:00:02]} f3 {[%emt 0:00:41]} 55. Rxb7+ {[%emt 0:00:50]} Kh6 {[%emt 0:00:10]} 56. Kxf6 {[%emt 0:00:11]} Ra3 {[%emt 0:00:51]} 57. Rb8 {[%emt 0:00:47]} Ra7 {[%emt 0:00:14]} 58. Rb3 {[%emt 0:01:45]} g4 {[%emt 0:00:18]} 59. Bxg4 {[%emt 0:01:25]} Rg7 {[%emt 0:00:03]} 60. Bf5 {[%emt 0:00:40]} Rg8 {[%emt 0:00:06]} 61. Rxf3 {[%emt 0:00:35]} Rg6+ {[%emt 0:00:14]} 62. Ke5 {[%emt 0:00:07]} Rg7 {[%emt 0:00:41]} 63. Rf1 {[%emt 0:00:48]} Rg5 {[%emt 0:00:52]} 64. Ra1 {[%emt 0:00:46]} Rg7 {[%emt 0:00:33]} 65. Kf4 {[%emt 0:00:09]} Rg2 {[%emt 0:01:20]} 66. Ra7 {[%emt 0:00:16]} Rf2+ {[%emt 0:00:23]} 67. Ke5 {[%emt 0:00:07]} Rb2 {[%emt 0:00:44]} 68. Rh7+ {[%emt 0:00:57]} Kg5 {[%emt 0:00:04]} 69. Rg7+ {[%emt 0:00:04]} Kh6 {[%emt 0:00:31]} 70. Rg6+ {[%emt 0:00:17]} Kh5 {[%emt 0:00:03]} 71. Rg8 {[%emt 0:00:31]} Rb6 {[%emt 0:00:57]} 72. Rg7 {[%emt 0:00:26]} Ra6 {[%emt 0:00:28]} 73. Kf4 {[%emt 0:00:12]} Ra4+ {[%emt 0:00:40]} 74. Be4 {[%emt 0:00:11]} Ra6 {[%emt 0:00:03]} 75. Rh7+ {[%emt 0:01:44]} Rh6 {[%emt 0:00:06]} 76. Ra7 {[%emt 0:00:11]} Rb6 {[%emt 0:00:48]} 77. Bf5 {[%emt 0:01:21]} Rb4+ {[%emt 0:00:20]} 78. Ke5 {[%emt 0:00:07]} Rb6 {[%emt 0:00:21]} 79. Rg7 {[%emt 0:00:39]} Kh6 {[%emt 0:00:41]} 80. Rg1 {[%emt 0:00:06]} Kh5 {[%emt 0:00:46]} 81. Kf4 {[%emt 0:00:33]} Kh6 {[%emt 0:00:28]} 82. Rh1+ {[%emt 0:00:07]} Kg7 {[%emt 0:00:06]} 83. Rh7+ {[%emt 0:00:03]} Kf8 {[%emt 0:00:23]} 84. Ke5 {[%emt 0:00:21]} Kg8 {[%emt 0:00:29]} 85. Rc7 {[%emt 0:00:06]} Kh8 {[%emt 0:00:42]} 86. Rf7 {[%emt 0:00:38]} Rh6 {[%emt 0:00:48]} 87. Rd7 {[%emt 0:01:21]} Kg8 {[%emt 0:00:30]} 88. Be6+ {[%emt 0:00:06]} Kh8 {[%emt 0:00:17]} 89. Rf7 {[%emt 0:01:12]} Rh5+ {[%emt 0:00:39]} 90. Kf6 {[%emt 0:00:27]} Rh6+ {[%emt 0:00:12]} 91. Kf5 {[%emt 0:00:09]} Rh2 {[%emt 0:00:34]} 92. Kg6 {[%emt 0:00:35]} Rg2+ {[%emt 0:00:29]} 93. Kf6 {[%emt 0:00:08]} Rg8 {[%emt 0:01:15]} 94. Bd7 {[%emt 0:00:42]} Rg7 {[%emt 0:00:17]} 95. Rf8+ {[%emt 0:00:53]} Rg8 {[%emt 0:00:04]} 96. Rxg8+ {[%emt 0:00:09]} Kxg8 {[%emt 0:00:04]} 1/2-1/2

[Event "XXXIX Benasque Open 2019"]
[Site "Benasque"]
[Date "2019.07.11"]
[Round "8.2"]
[White "Hovhannisyan, Robert"]
[Black "Rychagov, Andrey"]
[Result "1-0"]
[ECO "C10"]
[WhiteElo "2640"]
[BlackElo "2537"]
[Annotator "RC"]
[PlyCount "47"]
[EventDate "2019.07.04"]
[EventType "swiss"]
[EventCountry "ESP"]
[TimeControl "5400+30"]

1. e4 {[%emt 0:00:00]} e6 {[%emt 0:02:07]} 2. d4 {[%emt 0:00:00]} d5 {[%emt 0:00:03]} 3. Nc3 {[%emt 0:00:00]} dxe4 {[%emt 0:00:38]} 4. Nxe4 {[%emt 0:00:00]} Nd7 {[%emt 0:00:04]} 5. Nf3 {[%emt 0:00:22]} Ngf6 {[%emt 0:00:08]} 6. Bg5 {[%emt 0:00:24]} h6 {[%emt 0:00:24]} 7. Bxf6 {[%emt 0:00:35]} Nxf6 {[%emt 0:00:09]} 8. Bd3 {[%emt 0:00:07]} Nxe4 {[%emt 0:14:39]} 9. Bxe4 {[%emt 0:00:07]} c5 {[%emt 0:00:10]} 10. Qe2 {[%emt 0:00:46]} Qa5+ {[%emt 0:03:07]} 11. c3 {[%emt 0:00:09]} Be7 {[%emt 0:08:56]} 12. O-O {[%emt 0:01:24]} cxd4 {[%emt 0:06:47]} 13. cxd4 {[%emt 0:02:25]} O-O {[%emt 0:02:40]} 14. Ne5 {[%emt 0:02:29]} Bf6 {[%emt 0:05:32]} 15. Bc2 {[%emt 0:02:10]} Rd8 {[%emt 0:17:02]} 16. Qe4 {[%emt 0:02:02]} Qb6 {[%emt 0:05:49]} 17. Rad1 {[%emt 0:20:46]} Qxb2 {[%emt 0:02:11]} 18. Qh7+ {[%emt 0:04:31]} Kf8 {[%emt 0:00:03]} 19. Bb3 {[%emt 0:00:52]} Ke7 {[%emt 0:12:16]} 20. Qe4 {[%emt 0:05:41]} Kf8 {[%emt 0:00:26]} 21. Rd3 {[%emt 0:05:48]} Bxe5 {[%emt 0:02:43]} 22. dxe5 {[%emt 0:00:43]} Bd7 {[%emt 0:01:46]} 23. Rfd1 {[%emt 0:13:55]} Ke8 {[%emt 0:00:06]} 24. Rxd7 {[%emt 0:01:04]} 1-0

[Event "XXXIX Benasque Open 2019"]
[Site "Benasque"]
[Date "2019.07.11"]
[Round "8.5"]
[White "Forcen Esteban, Daniel"]
[Black "Lopez Mulet, Inigo"]
[Result "1-0"]
[ECO "C12"]
[WhiteElo "2566"]
[BlackElo "2378"]
[Annotator "ChessBase"]
[PlyCount "119"]
[EventDate "2019.07.04"]
[EventType "swiss"]
[EventCountry "ESP"]
[SourceTitle "playchess.com"]
[Source "ChessBase"]
[SourceQuality "1"]
[TimeControl "5400+30"]

1. e4 {[%emt 0:00:00]} e6 {[%emt 0:01:57]} 2. d4 {[%emt 0:00:21]} d5 {[%emt 0:00:05]} 3. Nc3 {[%emt 0:00:22]} Nf6 {[%emt 0:00:15]} 4. Bg5 {[%emt 0:00:34]} Bb4 {[%emt 0:00:34]} 5. e5 {[%emt 0:01:07]} h6 {[%emt 0:00:06]} 6. Bc1 {[%emt 0:00:04]} Ne4 {[%emt 0:00:10]} 7. Qg4 {[%emt 0:00:56]} g6 {[%emt 0:00:15]} 8. Nge2 {[%emt 0:00:23]} c5 {[%emt 0:00:54]} 9. a3 {[%emt 0:00:08]} Bxc3+ {[%emt 0:00:29]} 10. Nxc3 {[%emt 0:00:08]} Nxc3 {[%emt 0:00:08]} 11. bxc3 {[%emt 0:00:02]} Qa5 {[%emt 0:00:21]} 12. Bd2 {[%emt 0:00:06]} Qa4 {[%emt 0:00:58]} 13. h4 {[%emt 0:00:11]} Qxc2 {[%emt 0:26:43]} 14. h5 {[%emt 0:01:28]} cxd4 {[%emt 0:13:05]} 15. cxd4 {[%emt 0:01:20]} Nc6 {[%emt 0:00:07]} 16. hxg6 {[%emt 0:00:09]} Qxg6 {[%emt 0:02:46]} 17. Qxg6 {[%emt 0:00:07]} fxg6 {[%emt 0:00:06]} 18. Bd3 {[%emt 0:00:03]} Kf7 {[%emt 0:00:59]} 19. Bg5 {[%emt 0:00:07]} Bd7 {[%emt 0:05:44]} 20. Bf6 {[%emt 0:00:16]} Nxd4 {[%emt 0:09:33]} 21. Bxh8 {[%emt 0:00:14]} Rxh8 {[%emt 0:00:05]} 22. Rc1 {[%emt 0:01:34]} Bc6 {[%emt 0:04:40]} 23. Rd1 {[%emt 0:09:51]} Nf5 {[%emt 0:02:23]} 24. g4 {[%emt 0:00:44]} Ne7 {[%emt 0:00:49]} 25. Rh3 {[%emt 0:00:27]} Kg7 {[%emt 0:04:04]} 26. Rf3 {[%emt 0:01:28]} g5 {[%emt 0:05:05]} 27. Rf6 {[%emt 0:30:45]} Bd7 {[%emt 0:00:39]} 28. Kd2 {[%emt 0:06:26]} Nc6 {[%emt 0:06:11]} 29. Rg6+ {[%emt 0:01:12]} Kf7 {[%emt 0:00:07]} 30. Re1 {[%emt 0:00:14]} Nd4 {[%emt 0:03:42]} 31. Ke3 {[%emt 0:03:06]} Nc6 {[%emt 0:01:41]} 32. f4 {[%emt 0:02:25]} h5 {[%emt 0:05:37]} 33. Rxg5 {[%emt 0:05:49]} hxg4 {[%emt 0:00:19]} 34. Bg6+ {[%emt 0:03:09]} Ke7 {[%emt 0:00:21]} 35. Rh5 {[%emt 0:06:41]} Rg8 {[%emt 0:01:25]} 36. Rh7+ {[%emt 0:00:05]} Kd8 {[%emt 0:00:05]} 37. Bf7 {[%emt 0:00:04]} Rf8 {[%emt 0:00:12]} 38. Kf2 {[%emt 0:03:08]} Nd4 {[%emt 0:01:43]} 39. Rg1 {[%emt 0:01:22]} Be8 {[%emt 0:04:16]} 40. Bxe8 {[%emt 0:04:56]} Rxf4+ {[%emt 0:00:07]} 41. Kg2 {[%emt 0:01:26]} Kxe8 {[%emt 0:00:06]} 42. Rxb7 {[%emt 0:01:07]} Nf5 {[%emt 0:00:55]} 43. Rgb1 {[%emt 0:03:13]} Rf3 {[%emt 0:01:02]} 44. Rxa7 {[%emt 0:00:53]} Rg3+ {[%emt 0:00:37]} 45. Kf2 {[%emt 0:00:07]} Rf3+ {[%emt 0:00:06]} 46. Ke1 {[%emt 0:00:15]} Ne7 {[%emt 0:00:29]} 47. Rb8+ {[%emt 0:00:04]} Kf7 {[%emt 0:00:02]} 48. Rbb7 {[%emt 0:00:03]} Re3+ {[%emt 0:00:54]} 49. Kf2 {[%emt 0:00:06]} Rxe5 {[%emt 0:00:04]} 50. Rxe7+ {[%emt 0:00:03]} Kf6 {[%emt 0:00:06]} 51. Rf7+ {[%emt 0:00:22]} Kg5 {[%emt 0:00:05]} 52. Rg7+ {[%emt 0:00:18]} Kf5 {[%emt 0:00:48]} 53. Raf7+ {[%emt 0:00:06]} Ke4 {[%emt 0:00:04]} 54. Rxg4+ {[%emt 0:00:05]} Kd3 {[%emt 0:00:03]} 55. Rf3+ {[%emt 0:00:20]} Kc2 {[%emt 0:00:10]} 56. a4 {[%emt 0:00:40]} Rh5 {[%emt 0:00:07]} 57. Rg2 {[%emt 0:00:05]} Rh1 {[%emt 0:00:28]} 58. a5 {[%emt 0:00:08]} d4 {[%emt 0:00:08]} 59. Kg3+ {[%emt 0:00:04]} Kb1 {[%emt 0:00:08]} 60. a6 {[%emt 0:00:13]} 1-0

[Event "XXXIX Benasque Open 2019"]
[Site "Benasque"]
[Date "2019.07.11"]
[Round "8.6"]
[White "Marin, Mihail"]
[Black "Vazquez Igarza, Renier"]
[Result "0-1"]
[ECO "A03"]
[WhiteElo "2525"]
[BlackElo "2558"]
[Annotator "ChessBase"]
[PlyCount "106"]
[EventDate "2019.07.04"]
[EventType "swiss"]
[EventCountry "ESP"]
[SourceTitle "playchess.com"]
[Source "ChessBase"]
[SourceQuality "1"]
[TimeControl "5400+30"]

1. f4 {[%emt 0:03:57]} d5 {[%emt 0:00:00]} 2. Nf3 {[%emt 0:00:26]} Nf6 {[%emt 0:00:49]} 3. g3 {[%emt 0:00:10]} g6 {[%emt 0:00:58]} 4. Bg2 {[%emt 0:00:06]} Bg7 {[%emt 0:00:04]} 5. O-O {[%emt 0:00:09]} c5 {[%emt 0:00:37]} 6. d3 {[%emt 0:00:11]} Nc6 {[%emt 0:00:31]} 7. Nc3 {[%emt 0:04:34]} d4 {[%emt 0:01:13]} 8. Na4 {[%emt 0:00:16]} Nd7 {[%emt 0:01:30]} 9. c4 {[%emt 0:03:45]} dxc3 {[%emt 0:01:52]} 10. Nxc3 {[%emt 0:02:58]} O-O {[%emt 0:00:29]} 11. Be3 {[%emt 0:00:58]} b6 {[%emt 0:11:46]} 12. d4 {[%emt 0:05:48]} Bb7 {[%emt 0:01:08]} 13. Rc1 {[%emt 0:11:22]} Nxd4 {[%emt 0:05:54]} 14. Nxd4 {[%emt 0:07:14]} Bxg2 {[%emt 0:03:20]} 15. Kxg2 {[%emt 0:00:09]} cxd4 {[%emt 0:00:07]} 16. Bxd4 {[%emt 0:00:03]} e5 {[%emt 0:09:57]} 17. Bg1 {[%emt 0:00:51]} exf4 {[%emt 0:00:30]} 18. gxf4 {[%emt 0:00:53]} Rc8 {[%emt 0:06:17]} 19. Rf3 {[%emt 0:05:04]} Nc5 {[%emt 0:02:43]} 20. Qxd8 {[%emt 0:08:30]} Rfxd8 {[%emt 0:00:14]} 21. Nb5 {[%emt 0:00:51]} Bxb2 {[%emt 0:29:52]} 22. Rc2 {[%emt 0:02:05]} Na4 {[%emt 0:02:04]} 23. Rxc8 {[%emt 0:00:12]} Rxc8 {[%emt 0:00:01]} 24. Nxa7 {[%emt 0:00:08]} Rc2 {[%emt 0:00:20]} 25. Rb3 {[%emt 0:10:41]} Rxe2+ {[%emt 0:01:13]} 26. Kf3 {[%emt 0:03:20]} Rc2 {[%emt 0:00:07]} 27. Rb4 {[%emt 0:02:09]} Rc3+ {[%emt 0:00:46]} 28. Kg2 {[%emt 0:08:07]} Ra3 {[%emt 0:00:24]} 29. Nc8 {[%emt 0:01:42]} Rxa2 {[%emt 0:00:44]} 30. Kf3 {[%emt 0:00:08]} Bc3 {[%emt 0:01:25]} 31. Rb3 {[%emt 0:06:33]} Ba5 {[%emt 0:02:41]} 32. Rd3 {[%emt 0:00:22]} b5 {[%emt 0:01:29]} 33. Nd6 {[%emt 0:00:16]} Bb6 {[%emt 0:04:08]} 34. Bxb6 {[%emt 0:01:40]} Nxb6 {[%emt 0:00:02]} 35. Nxb5 {[%emt 0:02:18]} Rxh2 {[%emt 0:00:03]} 36. Rd8+ {[%emt 0:00:35]} Kg7 {[%emt 0:00:03]} 37. Nd6 {[%emt 0:00:06]} Rc2 {[%emt 0:02:53]} 38. Rb8 {[%emt 0:05:27]} Rc6 {[%emt 0:00:48]} 39. Ne8+ {[%emt 0:00:26]} Kh6 {[%emt 0:01:13]} 40. Rb7 {[%emt 0:00:39]} Re6 {[%emt 0:00:58]} 41. Rb8 {[%emt 0:01:09]} Nd5 {[%emt 0:01:08]} 42. Rd8 {[%emt 0:00:53]} Re3+ {[%emt 0:01:32]} 43. Kf2 {[%emt 0:00:05]} Re4 {[%emt 0:01:36]} 44. Rxd5 {[%emt 0:01:46]} Rxe8 {[%emt 0:00:07]} 45. Kg3 {[%emt 0:00:04]} Kg7 {[%emt 0:00:47]} 46. Ra5 {[%emt 0:00:17]} Re3+ {[%emt 0:00:44]} 47. Kf2 {[%emt 0:00:22]} Rb3 {[%emt 0:00:34]} 48. Kg2 {[%emt 0:00:29]} h6 {[%emt 0:00:15]} 49. Kf2 {[%emt 0:00:18]} Kf6 {[%emt 0:00:28]} 50. Kg2 {[%emt 0:00:07]} g5 {[%emt 0:00:15]} 51. Ra6+ {[%emt 0:00:07]} Kg7 {[%emt 0:00:32]} 52. Ra5 {[%emt 0:00:11]} Kg6 {[%emt 0:00:13]} 53. Ra6+ {[%emt 0:00:08]} f6 {[%emt 0:00:06]} 0-1

[Event "XXXIX Benasque Open 2019"]
[Site "Benasque"]
[Date "2019.07.11"]
[Round "8.8"]
[White "Ter-Sahakyan, Samvel"]
[Black "Akash Pc, Iyer"]
[Result "1-0"]
[ECO "B31"]
[WhiteElo "2625"]
[BlackElo "2441"]
[Annotator "RC"]
[PlyCount "102"]
[EventDate "2019.07.04"]
[EventType "swiss"]
[EventCountry "ESP"]
[SourceTitle "playchess.com"]
[Source "ChessBase"]
[SourceQuality "1"]
[TimeControl "5400+30"]

1. e4 {[%emt 0:00:00]} c5 {[%emt 0:00:00]} 2. Nf3 {[%emt 0:00:00]} Nc6 {[%emt 0:00:00]} 3. Bb5 {[%emt 0:01:16]} g6 {[%emt 0:00:00]} 4. Bxc6 {[%emt 0:01:47]} bxc6 {[%emt 0:00:06]} 5. O-O {[%emt 0:00:57]} Bg7 {[%emt 0:00:31]} 6. Re1 {[%emt 0:00:27]} Nh6 {[%emt 0:02:04]} 7. c3 {[%emt 0:01:15]} O-O {[%emt 0:01:44]} 8. d4 {[%emt 0:00:21]} cxd4 {[%emt 0:00:32]} 9. cxd4 {[%emt 0:00:04]} d5 {[%emt 0:00:38]} 10. e5 {[%emt 0:00:08]} f6 {[%emt 0:00:17]} 11. Qc2 {[%emt 0:00:26]} Qb6 {[%emt 0:16:17]} 12. exf6 {[%emt 0:24:51]} exf6 {[%emt 0:01:26]} 13. b3 {[%emt 0:01:16]} Bf5 {[%emt 0:02:00]} 14. Qc3 {[%emt 0:00:45]} Rfe8 {[%emt 0:01:45]} 15. Ba3 {[%emt 0:04:29]} Qa6 {[%emt 0:06:03]} 16. Bc5 {[%emt 0:02:00]} Re2 {[%emt 0:05:46]} 17. Rxe2 {[%emt 0:10:33]} Qxe2 {[%emt 0:00:35]} 18. Qd2 {[%emt 0:00:12]} Re8 {[%emt 0:06:51]} 19. Qxe2 {[%emt 0:10:53]} Rxe2 {[%emt 0:00:19]} 20. Nc3 {[%emt 0:00:02]} Rc2 {[%emt 0:01:39]} 21. Nd1 {[%emt 0:00:23]} a6 {[%emt 0:01:11]} 22. h3 {[%emt 0:03:00]} Re2 {[%emt 0:03:39]} 23. Nc3 {[%emt 0:02:35]} Rc2 {[%emt 0:01:10]} 24. Na4 {[%emt 0:02:06]} g5 {[%emt 0:08:36]} 25. Bb4 {[%emt 0:11:47]} g4 {[%emt 0:11:42]} 26. Ne1 {[%emt 0:01:58]} Re2 {[%emt 0:00:06]} 27. hxg4 {[%emt 0:06:15]} Nxg4 {[%emt 0:00:28]} 28. f3 {[%emt 0:00:09]} Nh6 {[%emt 0:07:56]} 29. Kf1 {[%emt 0:03:22]} Re8 {[%emt 0:00:06]} 30. Rc1 {[%emt 0:00:12]} Bg6 {[%emt 0:08:36]} 31. Rxc6 {[%emt 0:03:48]} Nf5 {[%emt 0:00:05]} 32. Rxa6 {[%emt 0:01:45]} Nxd4 {[%emt 0:01:01]} 33. Nc5 {[%emt 0:02:34]} Bf8 {[%emt 0:05:35]} 34. Rb6 {[%emt 0:01:19]} Nf5 {[%emt 0:05:48]} 35. Ncd3 {[%emt 0:02:36]} Bh6 {[%emt 0:00:31]} 36. f4 {[%emt 0:00:44]} Ne3+ {[%emt 0:00:44]} 37. Kf2 {[%emt 0:01:04]} Ng4+ {[%emt 0:01:04]} 38. Kg3 {[%emt 0:00:40]} Bf5 {[%emt 0:00:10]} 39. Bc5 {[%emt 0:00:34]} Re2 {[%emt 0:00:44]} 40. a4 {[%emt 0:00:20]} Ne3 {[%emt 0:00:32]} 41. a5 {[%emt 0:00:58]} Nf1+ {[%emt 0:01:32]} 42. Kf3 {[%emt 0:00:09]} Ra2 {[%emt 0:00:25]} 43. a6 {[%emt 0:00:38]} Be4+ {[%emt 0:00:43]} 44. Kg4 {[%emt 0:00:04]} Kf7 {[%emt 0:00:16]} 45. Bd4 {[%emt 0:00:56]} Bg7 {[%emt 0:00:11]} 46. Kh4 {[%emt 0:00:39]} Kg6 {[%emt 0:00:55]} 47. Rc6 {[%emt 0:00:37]} Bxd3 {[%emt 0:00:34]} 48. Nxd3 {[%emt 0:00:04]} Rxg2 {[%emt 0:00:04]} 49. Ne1 {[%emt 0:00:56]} Rh2+ {[%emt 0:00:59]} 50. Kg4 {[%emt 0:00:03]} h5+ {[%emt 0:00:22]} 51. Kf3 {[%emt 0:00:04]} Ra2 {[%emt 0:01:12] Ke4} 1-0

[Event "XXXIX Benasque Open 2019"]
[Site "Benasque"]
[Date "2019.07.11"]
[Round "8.9"]
[White "Cori T., Deysi"]
[Black "Markus, Robert"]
[Result "0-1"]
[ECO "E68"]
[WhiteElo "2405"]
[BlackElo "2595"]
[Annotator "ChessBase"]
[PlyCount "70"]
[EventDate "2019.07.04"]
[EventType "swiss"]
[EventCountry "ESP"]
[SourceTitle "playchess.com"]
[Source "ChessBase"]
[SourceQuality "1"]
[TimeControl "5400+30"]

1. d4 {[%emt 0:00:00]} Nf6 {[%emt 0:00:00]} 2. c4 {[%emt 0:00:17]} d6 {[%emt 0:00:06]} 3. Nf3 {[%emt 0:00:10]} Nbd7 {[%emt 0:00:19]} 4. Nc3 {[%emt 0:00:27]} e5 {[%emt 0:00:23]} 5. g3 {[%emt 0:04:31]} g6 {[%emt 0:00:34]} 6. Bg2 {[%emt 0:00:07]} Bg7 {[%emt 0:00:06]} 7. O-O {[%emt 0:00:34]} O-O {[%emt 0:00:07]} 8. e4 {[%emt 0:00:47]} h6 {[%emt 0:00:31]} 9. h3 {[%emt 0:02:43]} Nh7 {[%emt 0:00:10]} 10. Be3 {[%emt 0:08:00]} Ng5 {[%emt 0:00:43]} 11. Nxg5 {[%emt 0:07:36]} hxg5 {[%emt 0:00:07]} 12. Rc1 {[%emt 0:05:10]} c6 {[%emt 0:10:19]} 13. b3 {[%emt 0:13:53]} Re8 {[%emt 0:07:41]} 14. dxe5 {[%emt 0:14:50]} dxe5 {[%emt 0:02:07]} 15. Qd2 {[%emt 0:00:47]} Bf6 {[%emt 0:02:52]} 16. Rfd1 {[%emt 0:03:45]} Qe7 {[%emt 0:01:22]} 17. Na4 {[%emt 0:01:00]} b6 {[%emt 0:11:10]} 18. c5 {[%emt 0:09:21]} b5 {[%emt 0:03:28]} 19. Nc3 {[%emt 0:09:57]} Nf8 {[%emt 0:10:51]} 20. Nd5 {[%emt 0:00:18]} cxd5 {[%emt 0:00:05]} 21. exd5 {[%emt 0:00:02]} e4 {[%emt 0:00:06]} 22. d6 {[%emt 0:00:08]} Qe6 {[%emt 0:00:35]} 23. c6 {[%emt 0:00:38]} Rd8 {[%emt 0:00:06]} 24. Qb4 {[%emt 0:02:47]} a5 {[%emt 0:02:07]} 25. Qxe4 {[%emt 0:02:06]} Rxd6 {[%emt 0:01:18]} 26. Rxd6 {[%emt 0:06:37]} Qxd6 {[%emt 0:00:29]} 27. c7 {[%emt 0:00:10]} Ra6 {[%emt 0:09:46]} 28. Qb7 {[%emt 0:00:04]} Qd7 {[%emt 0:03:18]} 29. Qb8 {[%emt 0:00:03]} Bb2 {[%emt 0:00:22]} 30. Rc5 {[%emt 0:05:53]} Rd6 {[%emt 0:01:57]} 31. Rxb5 {[%emt 0:01:54]} Bd4 {[%emt 0:01:11]} 32. Bxd4 {[%emt 0:00:53]} Rxd4 {[%emt 0:00:06]} 33. Rxa5 {[%emt 0:00:05]} Rd1+ {[%emt 0:01:41]} 34. Kh2 {[%emt 0:00:01]} Rc1 {[%emt 0:00:14]} 35. Rxg5 {[%emt 0:00:54]} Qd1 {[%emt 0:01:08]} 0-1

[Event "XXXIX Benasque Open 2019"]
[Site "Benasque"]
[Date "2019.07.11"]
[Round "8.10"]
[White "Cruz, Cristhian"]
[Black "Enchev, Ivajlo"]
[Result "1-0"]
[ECO "E54"]
[WhiteElo "2562"]
[BlackElo "2487"]
[Annotator "ChessBase"]
[PlyCount "55"]
[EventDate "2019.07.04"]
[EventType "swiss"]
[EventCountry "ESP"]
[SourceTitle "playchess.com"]
[Source "ChessBase"]
[SourceQuality "1"]
[TimeControl "5400+30"]

1. d4 {[%emt 0:00:00]} Nf6 {[%emt 0:00:00]} 2. c4 {[%emt 0:00:34]} e6 {[%emt 0:00:00]} 3. Nc3 {[%emt 0:00:19]} Bb4 {[%emt 0:00:02]} 4. e3 {[%emt 0:00:07]} O-O {[%emt 0:00:40]} 5. Bd3 {[%emt 0:00:46]} d5 {[%emt 0:00:44]} 6. Nf3 {[%emt 0:01:12]} dxc4 {[%emt 0:00:38]} 7. Bxc4 {[%emt 0:01:48]} c5 {[%emt 0:00:15]} 8. O-O {[%emt 0:00:17]} b6 {[%emt 0:01:49]} 9. a3 {[%emt 0:00:47]} cxd4 {[%emt 0:00:26]} 10. exd4 {[%emt 0:05:21]} Bxc3 {[%emt 0:00:17]} 11. bxc3 {[%emt 0:00:05]} Qc7 {[%emt 0:01:42]} 12. Qe2 {[%emt 0:04:12]} Bb7 {[%emt 0:00:58]} 13. Bd2 {[%emt 0:19:06]} Nbd7 {[%emt 0:11:55]} 14. Bd3 {[%emt 0:00:13]} Rad8 {[%emt 0:08:27]} 15. Rac1 {[%emt 0:09:39]} Rfe8 {[%emt 0:04:38]} 16. Bg5 {[%emt 0:16:26]} Qd6 {[%emt 0:06:56]} 17. Bb5 {[%emt 0:01:15]} Bc6 {[%emt 0:11:20]} 18. a4 {[%emt 0:05:39]} Rc8 {[%emt 0:02:08]} 19. Rfe1 {[%emt 0:18:18]} Qd5 {[%emt 0:02:16]} 20. c4 {[%emt 0:00:30]} Qf5 {[%emt 0:00:30]} 21. Bh4 {[%emt 0:00:16]} Nb8 {[%emt 0:08:53]} 22. Bg3 {[%emt 0:01:41]} a6 {[%emt 0:01:26]} 23. Bxc6 {[%emt 0:00:11]} Nxc6 {[%emt 0:00:21]} 24. h3 {[%emt 0:05:28]} Red8 {[%emt 0:01:24]} 25. Qb2 {[%emt 0:00:22]} Qa5 {[%emt 0:02:13]} 26. Bh4 {[%emt 0:00:38]} Qb4 {[%emt 0:00:36]} 27. Qa1 {[%emt 0:01:19]} Na5 {[%emt 0:14:14]} 28. Bxf6 {[%emt 0:01:02]} 1-0